[Event "XIX Najdorf Memorial 2019"]
[Site "Warsaw"]
[Date "2019.07.12"]
[Round "7.11"]
[White "Fus, Jakub"]
[Black "Popovic, Dusan"]
[Result "1-0"]
[ECO "E94"]
[WhiteElo "2341"]
[BlackElo "2487"]
[Annotator "ChessBase"]
[PlyCount "89"]
[EventDate "2019.07.06"]
[EventType "swiss"]
[EventCountry "POL"]
[SourceTitle "playchess.com"]
[Source "ChessBase"]
[SourceQuality "1"]
[TimeControl "40/5400+30:1800+30"]

1. d4 {[%emt 0:00:00]} Nf6 {[%emt 0:00:00]} 2. c4 {[%emt 0:00:00]} g6 {[%emt 0:00:00]} 3. Nc3 {[%emt 0:00:17]} Bg7 {[%emt 0:00:00]} 4. e4 {[%emt 0:00:25]} d6 {[%emt 0:00:00]} 5. Nf3 {[%emt 0:00:25]} O-O {[%emt 0:00:00]} 6. Be2 {[%emt 0:00:33]} e5 {[%emt 0:00:32]} 7. O-O {[%emt 0:00:34]} c6 {[%emt 0:01:14]} 8. d5 {[%emt 0:07:37]} Na6 {[%emt 0:02:53]} 9. Be3 {[%emt 0:08:03]} Ng4 {[%emt 0:02:18]} 10. Bg5 {[%emt 0:00:55]} f6 {[%emt 0:00:05]} 11. Bh4 {[%emt 0:00:44]} c5 {[%emt 0:01:04]} 12. Ne1 {[%emt 0:03:32]} Nh6 {[%emt 0:01:09]} 13. Nd3 {[%emt 0:04:30]} g5 {[%emt 0:00:31]} 14. Bg3 {[%emt 0:00:06]} f5 {[%emt 0:00:05]} 15. exf5 {[%emt 0:04:34]} Nxf5 {[%emt 0:00:52]} 16. Ne4 {[%emt 0:04:42]} Nc7 {[%emt 0:00:39]} 17. Bg4 {[%emt 0:14:18]} Ne8 {[%emt 0:01:24]} 18. Re1 {[%emt 0:03:03]} Nf6 {[%emt 0:07:28]} 19. f3 {[%emt 0:11:06]} b5 {[%emt 0:15:02]} 20. b3 {[%emt 0:01:30]} h5 {[%emt 0:05:36]} 21. Bxf5 {[%emt 0:09:16]} Bxf5 {[%emt 0:01:57]} 22. Nxg5 {[%emt 0:01:12]} Nxd5 {[%emt 0:06:10]} 23. h4 {[%emt 0:05:16]} Nc3 {[%emt 0:06:03]} 24. Qd2 {[%emt 0:01:25]} b4 {[%emt 0:00:10]} 25. Nf2 {[%emt 0:00:52]} Bh6 {[%emt 0:11:58]} 26. Nfe4 {[%emt 0:03:54]} Bxe4 {[%emt 0:08:28]} 27. fxe4 {[%emt 0:00:11]} Qf6 {[%emt 0:00:33]} 28. a3 {[%emt 0:01:16]} a5 {[%emt 0:00:35]} 29. axb4 {[%emt 0:05:03]} axb4 {[%emt 0:01:07]} 30. Rxa8 {[%emt 0:00:11]} Rxa8 {[%emt 0:00:05]} 31. Rf1 {[%emt 0:00:24]} Qg6 {[%emt 0:04:52]} 32. Rf5 {[%emt 0:00:04]} Rf8 {[%emt 0:00:16]} 33. Qd3 {[%emt 0:03:24]} Rxf5 {[%emt 0:13:55]} 34. exf5 {[%emt 0:00:04]} Qf6 {[%emt 0:00:04]} 35. Ne6 {[%emt 0:00:46]} e4 {[%emt 0:00:21]} 36. Qxd6 {[%emt 0:00:35]} Qxf5 {[%emt 0:01:39]} 37. Be5 {[%emt 0:03:20]} Kf7 {[%emt 0:07:43]} 38. Qd7+ {[%emt 0:00:55]} Kg6 {[%emt 0:01:17]} 39. Nf4+ {[%emt 0:00:25]} Qxf4 {[%emt 0:00:05]} 40. Qe6+ {[%emt 0:00:00]} Kh7 {[%emt 0:00:00]} 41. Bxf4 {[%emt 0:00:48]} Bxf4 {[%emt 0:00:47]} 42. Qf7+ {[%emt 0:00:11]} Kh8 {[%emt 0:00:04]} 43. Qxh5+ {[%emt 0:00:06]} Kg7 {[%emt 0:00:12]} 44. Qg4+ {[%emt 0:00:12]} Kh7 {[%emt 0:00:04]} 45. Kh1 {[%emt 0:00:37]} 1-0

[Event "XIX Najdorf Memorial 2019"]
[Site "Warsaw"]
[Date "2019.07.12"]
[Round "7.11"]
[White "Kopylov, Daniel"]
[Black "Krstulovic, Alex"]
[Result "0-1"]
[ECO "B13"]
[WhiteElo "2209"]
[BlackElo "2360"]
[Annotator "NA"]
[PlyCount "112"]
[EventDate "2019.07.06"]
[EventType "swiss"]
[EventCountry "POL"]
[SourceTitle "playchess.com"]
[Source "ChessBase"]
[SourceQuality "1"]
[TimeControl "40/5400+30:1800+30"]

1. e4 {[%emt 0:00:00]} c6 {[%emt 0:00:00]} 2. d4 {[%emt 0:00:36]} d5 {[%emt 0:00:00]} 3. exd5 {[%emt 0:00:39]} cxd5 {[%emt 0:00:02]} 4. Bd3 {[%emt 0:00:48]} Nc6 {[%emt 0:00:17]} 5. c3 {[%emt 0:00:17]} Nf6 {[%emt 0:00:32]} 6. Bf4 {[%emt 0:01:20]} g6 {[%emt 0:00:10]} 7. Nf3 {[%emt 0:01:18]} Bf5 {[%emt 0:00:09]} 8. Bxf5 {[%emt 0:10:04]} gxf5 {[%emt 0:00:17]} 9. O-O {[%emt 0:00:22]} e6 {[%emt 0:01:02]} 10. Re1 {[%emt 0:01:20]} Ne4 {[%emt 0:01:39]} 11. Qb3 {[%emt 0:11:30]} Bd6 {[%emt 0:09:48]} 12. Bxd6 {[%emt 0:13:56]} Qxd6 {[%emt 0:01:00]} 13. c4 {[%emt 0:01:08]} dxc4 {[%emt 0:05:47]} 14. Qxc4 {[%emt 0:03:34]} Qb4 {[%emt 0:04:18]} 15. Qe2 {[%emt 0:16:14]} Rd8 {[%emt 0:10:49]} 16. a3 {[%emt 0:06:11]} Qb3 {[%emt 0:03:12]} 17. Nbd2 {[%emt 0:11:52]} Nxd2 {[%emt 0:01:02]} 18. Qxd2 {[%emt 0:00:10]} Rg8 {[%emt 0:02:21]} 19. Qe3 {[%emt 0:02:02]} Qd5 {[%emt 0:01:06]} 20. Rac1 {[%emt 0:02:00]} Nxd4 {[%emt 0:02:35]} 21. Qxd4 {[%emt 0:01:21]} Qxd4 {[%emt 0:03:47]} 22. Nxd4 {[%emt 0:00:05]} Rxd4 {[%emt 0:00:07]} 23. Rc7 {[%emt 0:00:33]} Rgg4 {[%emt 0:04:58]} 24. Rxb7 {[%emt 0:02:32]} Rge4 {[%emt 0:00:12]} 25. Kf1 {[%emt 0:00:58]} Rd2 {[%emt 0:01:04]} 26. Rxe4 {[%emt 0:05:52]} fxe4 {[%emt 0:00:02]} 27. Ke1 {[%emt 0:00:01]} e3 {[%emt 0:12:27]} 28. fxe3 {[%emt 0:00:31]} Rxg2 {[%emt 0:00:06]} 29. b4 {[%emt 0:00:19]} a6 {[%emt 0:00:44]} 30. Ra7 Rxh2 {[%emt 0:00:06]} 31. Rxa6 {[%emt 0:00:57]} h5 {[%emt 0:00:31]} 32. b5 {[%emt 0:01:37]} h4 {[%emt 0:00:34]} 33. Kf1 {[%emt 0:01:05]} h3 {[%emt 0:03:58]} 34. a4 {[%emt 0:01:03]} Rg2 {[%emt 0:02:53]} 35. b6 {[%emt 0:01:09]} Kd7 {[%emt 0:00:20]} 36. Ra7+ {[%emt 0:01:57]} Kc6 {[%emt 0:00:05]} 37. a5 {[%emt 0:00:09]} Rg5 {[%emt 0:02:09]} 38. Rc7+ {[%emt 0:02:43]} Kd6 {[%emt 0:00:01]} 39. Rc2 {[%emt 0:00:40]} Rxa5 {[%emt 0:00:14]} 40. Rb2 {[%emt 0:00:00]} Ra8 {[%emt 0:00:00]} 41. Kg1 {[%emt 0:07:06]} Rg8+ {[%emt 0:07:36]} 42. Kh1 {[%emt 0:07:32]} Kc6 {[%emt 0:01:53]} 43. Rf2 {[%emt 0:10:38]} f5 {[%emt 0:02:58]} 44. Rb2 {[%emt 0:04:18]} Rb8 {[%emt 0:01:44]} 45. Rh2 {[%emt 0:01:35]} Rxb6 {[%emt 0:02:13]} 46. Rxh3 {[%emt 0:00:12]} Rb2 {[%emt 0:00:05]} 47. Kg1 {[%emt 0:01:36]} Kd5 {[%emt 0:01:00]} 48. Kf1 {[%emt 0:00:20]} Ke4 {[%emt 0:02:24]} 49. Ke1 {[%emt 0:01:32]} e5 {[%emt 0:00:10]} 50. Kf1 {[%emt 0:00:15]} Rc2 {[%emt 0:00:33]} 51. Ke1 {[%emt 0:00:36]} Rc3 {[%emt 0:00:26]} 52. Kd2 {[%emt 0:00:56]} Rd3+ {[%emt 0:00:05]} 53. Ke2 {[%emt 0:00:01]} f4 {[%emt 0:00:08]} 54. Rh8 {[%emt 0:00:16]} f3+ {[%emt 0:00:38]} 55. Ke1 {[%emt 0:00:51]} Kxe3 {[%emt 0:00:15]} 56. Rh2 {[%emt 0:00:11]} f2+ {[%emt 0:00:14]} 0-1

[Event "XIX Najdorf Memorial 2019"]
[Site "Warsaw"]
[Date "2019.07.12"]
[Round "7.12"]
[White "Efimenko, Zahar"]
[Black "Fiedorek, Michal"]
[Result "1-0"]
[ECO "B51"]
[WhiteElo "2631"]
[BlackElo "2241"]
[Annotator "ChessBase"]
[PlyCount "49"]
[EventDate "2019.07.06"]
[EventType "swiss"]
[EventCountry "POL"]
[SourceTitle "playchess.com"]
[Source "ChessBase"]
[SourceQuality "1"]
[TimeControl "40/5400+30:1800+30"]

1. e4 {[%emt 0:00:48]} c5 {[%emt 0:00:00]} 2. Nf3 {[%emt 0:00:07]} d6 {[%emt 0:00:00]} 3. Bb5+ {[%emt 0:00:14]} Nd7 {[%emt 0:00:00]} 4. c3 {[%emt 0:00:26]} a6 {[%emt 0:00:26]} 5. Ba4 {[%emt 0:01:53]} b5 {[%emt 0:06:34]} 6. Bc2 {[%emt 0:00:12]} c4 {[%emt 0:00:47]} 7. b3 {[%emt 0:00:28]} Bb7 {[%emt 0:01:45]} 8. bxc4 {[%emt 0:01:16]} bxc4 {[%emt 0:00:07]} 9. Qe2 {[%emt 0:01:56]} Rc8 {[%emt 0:07:30]} 10. Na3 {[%emt 0:00:28]} Qc7 {[%emt 0:03:14]} 11. Rb1 {[%emt 0:04:07]} d5 {[%emt 0:08:09]} 12. O-O {[%emt 0:13:16]} e6 {[%emt 0:06:57]} 13. Re1 {[%emt 0:20:45]} Ba8 {[%emt 0:22:25]} 14. exd5 {[%emt 0:07:03]} Bxd5 {[%emt 0:00:40]} 15. d3 {[%emt 0:01:31]} cxd3 {[%emt 0:12:22]} 16. Bxd3 {[%emt 0:00:08]} Qa5 {[%emt 0:09:55]} 17. Nc4 {[%emt 0:08:12]} Qa4 {[%emt 0:05:26]} 18. Nb6 {[%emt 0:03:38]} Nxb6 {[%emt 0:00:46]} 19. Rxb6 {[%emt 0:00:03]} Bc5 {[%emt 0:05:27]} 20. Bxa6 {[%emt 0:05:56]} Qg4 {[%emt 0:04:00]} 21. Bxc8 {[%emt 0:03:45]} Bxf3 {[%emt 0:01:08]} 22. Qb5+ {[%emt 0:04:07]} Kf8 {[%emt 0:00:08]} 23. Qxc5+ {[%emt 0:00:03]} Ne7 {[%emt 0:00:08]} 24. Qg5 {[%emt 0:00:02]} Nxc8 {[%emt 0:00:36]} 25. Qd8# {[%emt 0:00:29]} 1-0

[Event "XIX Najdorf Memorial 2019"]
[Site "Warsaw"]
[Date "2019.07.12"]
[Round "7.12"]
[White "Paszewski, Mateusz"]
[Black "Harsha Bharathakoti"]
[Result "0-1"]
[ECO "B53"]
[WhiteElo "2324"]
[BlackElo "2486"]
[Annotator "ChessBase"]
[PlyCount "64"]
[EventDate "2019.07.06"]
[EventType "swiss"]
[EventCountry "POL"]
[SourceTitle "playchess.com"]
[Source "ChessBase"]
[SourceQuality "1"]
[TimeControl "40/5400+30:1800+30"]

1. e4 {[%emt 0:05:17]} c5 {[%emt 0:00:00]} 2. Nf3 {[%emt 0:00:18]} d6 {[%emt 0:00:12]} 3. d4 {[%emt 0:01:46]} cxd4 {[%emt 0:00:07]} 4. Qxd4 {[%emt 0:00:04]} Nc6 {[%emt 0:01:28]} 5. Qe3 {[%emt 0:00:38]} Nf6 {[%emt 0:02:24]} 6. Be2 {[%emt 0:01:01]} g6 {[%emt 0:00:06]} 7. h3 {[%emt 0:00:57]} Bg7 {[%emt 0:00:06]} 8. O-O {[%emt 0:00:05]} O-O {[%emt 0:00:06]} 9. Rd1 {[%emt 0:04:26]} Be6 {[%emt 0:12:04]} 10. Nc3 {[%emt 0:05:44]} Rc8 {[%emt 0:12:40]} 11. a3 {[%emt 0:11:06]} Qc7 {[%emt 0:01:49]} 12. Rb1 {[%emt 0:20:20]} a6 {[%emt 0:03:25]} 13. Bd2 {[%emt 0:08:26]} Rfd8 {[%emt 0:15:08]} 14. Ng5 {[%emt 0:02:41]} d5 {[%emt 0:05:28]} 15. Nxe6 {[%emt 0:00:31]} fxe6 {[%emt 0:00:04]} 16. exd5 {[%emt 0:06:47]} exd5 {[%emt 0:00:05]} 17. Qf4 {[%emt 0:00:45]} e5 {[%emt 0:04:05]} 18. Qh4 {[%emt 0:00:23]} Nd4 {[%emt 0:00:48]} 19. Bg5 {[%emt 0:04:03]} Qf7 {[%emt 0:07:20]} 20. Rd2 {[%emt 0:11:07]} h6 {[%emt 0:05:50]} 21. Bxf6 {[%emt 0:00:09]} Bxf6 {[%emt 0:00:03]} 22. Qg4 {[%emt 0:00:18]} h5 {[%emt 0:03:03]} 23. Qg3 {[%emt 0:00:15]} Nf5 {[%emt 0:00:04]} 24. Qh2 {[%emt 0:01:26]} Bg5 {[%emt 0:03:24]} 25. Rdd1 {[%emt 0:00:21]} Bf4 {[%emt 0:08:39]} 26. g3 {[%emt 0:01:13]} Bh6 {[%emt 0:00:08]} 27. Qg2 {[%emt 0:04:06]} Nd4 {[%emt 0:03:03]} 28. Bd3 {[%emt 0:03:20]} e4 {[%emt 0:02:59]} 29. Bf1 {[%emt 0:01:37]} Nf3+ {[%emt 0:00:15]} 30. Kh1 {[%emt 0:00:03]} Bg7 {[%emt 0:00:46]} 31. Be2 {[%emt 0:01:57]} Bxc3 {[%emt 0:00:31]} 32. bxc3 {[%emt 0:00:03]} Rxc3 {[%emt 0:00:08]} 0-1

[Event "XIX Najdorf Memorial 2019"]
[Site "Warsaw"]
[Date "2019.07.12"]
[Round "7.13"]
[White "Jarmula, Lukasz"]
[Black "Baum, Jonasz"]
[Result "1/2-1/2"]
[ECO "B52"]
[WhiteElo "2480"]
[BlackElo "2308"]
[Annotator "ChessBase"]
[PlyCount "76"]
[EventDate "2019.07.06"]
[EventType "swiss"]
[EventCountry "POL"]
[SourceTitle "playchess.com"]
[Source "ChessBase"]
[SourceQuality "1"]
[TimeControl "40/5400+30:1800+30"]

1. e4 {[%emt 0:00:00]} c5 {[%emt 0:00:00]} 2. Nf3 {[%emt 0:00:00]} d6 {[%emt 0:00:00]} 3. Bb5+ {[%emt 0:00:02]} Bd7 {[%emt 0:00:00]} 4. Bxd7+ {[%emt 0:00:05]} Qxd7 {[%emt 0:00:00]} 5. c4 {[%emt 0:00:18]} Nf6 {[%emt 0:00:03]} 6. Nc3 {[%emt 0:00:05]} g6 {[%emt 0:00:05]} 7. d4 {[%emt 0:00:48]} cxd4 {[%emt 0:00:04]} 8. Nxd4 {[%emt 0:00:04]} Bg7 {[%emt 0:00:05]} 9. f3 {[%emt 0:00:28]} O-O {[%emt 0:00:07]} 10. Be3 {[%emt 0:00:31]} Nc6 {[%emt 0:00:28]} 11. O-O {[%emt 0:00:55]} a6 {[%emt 0:00:46]} 12. Qd3 {[%emt 0:02:05]} Ne5 {[%emt 0:02:40]} 13. Qe2 {[%emt 0:00:10]} Rfc8 {[%emt 0:00:17]} 14. b3 {[%emt 0:00:15]} b5 {[%emt 0:01:26]} 15. Nd5 {[%emt 0:00:45]} Nxd5 {[%emt 0:00:54]} 16. cxd5 {[%emt 0:00:05]} Rc3 {[%emt 0:05:40]} 17. Rac1 {[%emt 0:11:56]} Rac8 {[%emt 0:03:24]} 18. Rxc3 {[%emt 0:05:33]} Rxc3 {[%emt 0:00:03]} 19. Bd2 {[%emt 0:00:15]} Rc7 {[%emt 0:03:11]} 20. f4 {[%emt 0:12:35]} Nc4 {[%emt 0:02:09]} 21. Nc6 {[%emt 0:12:10]} Nxd2 {[%emt 0:00:23]} 22. Qxd2 {[%emt 0:00:05]} Rc8 {[%emt 0:06:36]} 23. h3 {[%emt 0:07:24]} e6 {[%emt 0:07:38]} 24. Rc1 {[%emt 0:04:20]} Re8 {[%emt 0:04:01]} 25. a4 {[%emt 0:05:07]} exd5 {[%emt 0:06:50]} 26. Qxd5 {[%emt 0:04:52]} Qe6 {[%emt 0:03:19]} 27. Qxe6 {[%emt 0:07:09]} Rxe6 {[%emt 0:01:27]} 28. a5 {[%emt 0:00:22]} Rxe4 {[%emt 0:00:56]} 29. Nb8 {[%emt 0:00:21]} Bd4+ {[%emt 0:06:19]} 30. Kh1 {[%emt 0:00:28]} Be3 {[%emt 0:03:22]} 31. Re1 {[%emt 0:03:15]} d5 {[%emt 0:14:32]} 32. Nxa6 {[%emt 0:01:07]} Bd2 {[%emt 0:06:40]} 33. Ra1 {[%emt 0:03:28]} Bxf4 {[%emt 0:08:08]} 34. Nc5 {[%emt 0:01:22]} Re7 {[%emt 0:01:09]} 35. a6 {[%emt 0:01:22]} Ra7 {[%emt 0:00:28]} 36. Rd1 {[%emt 0:01:04]} Be3 {[%emt 0:00:55]} 37. Rxd5 {[%emt 0:00:06]} Bxc5 {[%emt 0:00:03]} 38. Rxc5 {[%emt 0:00:07]} Rxa6 {[%emt 0:00:03]} 1/2-1/2

[Event "XIX Najdorf Memorial 2019"]
[Site "Warsaw"]
[Date "2019.07.12"]
[Round "7.13"]
[White "Nguyen, Piotr"]
[Black "Lapaj, Mateusz"]
[Result "1-0"]
[ECO "E63"]
[WhiteElo "2420"]
[BlackElo "2223"]
[Annotator "NA"]
[PlyCount "83"]
[EventDate "2019.07.06"]
[EventType "swiss"]
[EventCountry "POL"]
[SourceTitle "playchess.com"]
[Source "ChessBase"]
[SourceQuality "1"]
[TimeControl "40/5400+30:1800+30"]

1. d4 {[%emt 0:00:00]} Nf6 {[%emt 0:00:00]} 2. c4 {[%emt 0:00:00]} g6 {[%emt 0:00:00]} 3. g3 {[%emt 0:00:21]} Bg7 {[%emt 0:00:00]} 4. Bg2 {[%emt 0:00:05]} O-O {[%emt 0:00:09]} 5. Nc3 {[%emt 0:00:06]} d6 {[%emt 0:00:05]} 6. Nf3 {[%emt 0:00:11]} Nc6 {[%emt 0:00:05]} 7. O-O {[%emt 0:00:08]} a6 {[%emt 0:00:04]} 8. Qd3 {[%emt 0:04:43]} Bf5 {[%emt 0:32:42]} 9. e4 {[%emt 0:03:13]} Bg4 {[%emt 0:00:02]} 10. Ne1 {[%emt 0:13:50]} Qd7 {[%emt 0:15:05]} 11. Nc2 {[%emt 0:03:32]} e5 {[%emt 0:07:47]} 12. d5 {[%emt 0:01:17]} Ne7 {[%emt 0:01:02]} 13. f4 {[%emt 0:11:47]} Nh5 {[%emt 0:01:49]} 14. fxe5 {[%emt 0:12:35]} Bxe5 {[%emt 0:00:47]} 15. Bh6 {[%emt 0:01:08]} Ng7 {[%emt 0:01:51]} 16. Bf4 {[%emt 0:03:56]} f6 {[%emt 0:06:40]} 17. b4 {[%emt 0:04:16]} Bh3 {[%emt 0:10:13]} 18. c5 {[%emt 0:02:24]} Bxg2 {[%emt 0:00:12]} 19. Kxg2 {[%emt 0:00:04]} Bxf4 {[%emt 0:04:15]} 20. Rxf4 {[%emt 0:03:52]} a5 {[%emt 0:01:17]} 21. Rb1 {[%emt 0:04:59]} axb4 {[%emt 0:04:55]} 22. Rxb4 {[%emt 0:00:09]} c6 {[%emt 0:01:07]} 23. Qc4 {[%emt 0:12:43]} cxd5 {[%emt 0:03:40]} 24. Nxd5 {[%emt 0:00:33]} Nxd5 {[%emt 0:00:16]} 25. Qxd5+ {[%emt 0:00:05]} Qe6 {[%emt 0:01:18]} 26. a4 {[%emt 0:04:08]} dxc5 {[%emt 0:04:05]} 27. Rxb7 {[%emt 0:00:21]} Qxd5 {[%emt 0:01:11]} 28. exd5 {[%emt 0:00:04]} Rfd8 {[%emt 0:01:59]} 29. Ne3 {[%emt 0:02:31]} Nf5 {[%emt 0:00:39]} 30. Nxf5 {[%emt 0:03:29]} gxf5 {[%emt 0:00:03]} 31. Rxf5 {[%emt 0:06:31]} Rxa4 {[%emt 0:00:04]} 32. Rh5 {[%emt 0:00:23]} Rd4 {[%emt 0:01:17]} 33. Rhxh7 {[%emt 0:00:04]} R4xd5 {[%emt 0:00:49]} 34. Rbg7+ {[%emt 0:00:15]} Kf8 {[%emt 0:00:01]} 35. Rc7 {[%emt 0:00:06]} Kg8 {[%emt 0:00:05]} 36. h4 {[%emt 0:00:24]} Re5 {[%emt 0:01:08]} 37. Kh3 {[%emt 0:02:08]} Red5 {[%emt 0:00:57]} 38. Rhg7+ {[%emt 0:00:34]} Kh8 {[%emt 0:00:10]} 39. Rgf7 {[%emt 0:00:24]} Rf5 {[%emt 0:00:44]} 40. Kg4 {[%emt 0:00:00]} Rf1 {[%emt 0:00:00]} 41. Rxc5 {[%emt 0:01:52]} Rg8+ {[%emt 0:15:44]} 42. Kh5 {[%emt 0:03:52]} 1-0

[Event "XIX Najdorf Memorial 2019"]
[Site "Warsaw"]
[Date "2019.07.12"]
[Round "7.14"]
[White "AlHuwar, Jasem"]
[Black "Gagare, Shardul"]
[Result "0-1"]
[ECO "A05"]
[WhiteElo "2255"]
[BlackElo "2476"]
[Annotator "ChessBase"]
[PlyCount "66"]
[EventDate "2019.07.06"]
[EventType "swiss"]
[EventCountry "POL"]
[SourceTitle "playchess.com"]
[Source "ChessBase"]
[SourceQuality "1"]
[TimeControl "40/5400+30:1800+30"]

1. Nf3 {[%emt 0:13:15]} Nf6 {[%emt 0:00:47]} 2. g3 {[%emt 0:00:07]} d5 {[%emt 0:03:36]} 3. Bg2 {[%emt 0:00:15]} Bf5 {[%emt 0:00:17]} 4. O-O {[%emt 0:00:10]} e6 {[%emt 0:00:13]} 5. d3 {[%emt 0:00:05]} c6 {[%emt 0:00:25]} 6. c4 {[%emt 0:00:05]} Be7 {[%emt 0:00:32]} 7. Nc3 {[%emt 0:00:13]} O-O {[%emt 0:05:14]} 8. Qb3 {[%emt 0:04:15]} Na6 {[%emt 0:12:30]} 9. cxd5 {[%emt 0:02:35]} exd5 {[%emt 0:00:37]} 10. Qxb7 {[%emt 0:10:11]} Nc5 {[%emt 0:12:50]} 11. Qb4 {[%emt 0:04:19]} Nxd3 {[%emt 0:00:24]} 12. Qd4 {[%emt 0:00:09]} c5 {[%emt 0:19:32]} 13. Qa4 {[%emt 0:00:11]} Nxc1 {[%emt 0:00:39]} 14. Raxc1 {[%emt 0:00:13]} d4 {[%emt 0:00:21]} 15. Nb1 {[%emt 0:00:31]} Rb8 {[%emt 0:01:32]} 16. Ne5 {[%emt 0:13:23]} Rxb2 {[%emt 0:02:34]} 17. Qxa7 {[%emt 0:05:41]} Bd6 {[%emt 0:07:01]} 18. Nc4 {[%emt 0:08:37]} Rxe2 {[%emt 0:00:42]} 19. Nxd6 {[%emt 0:01:45]} Qxd6 {[%emt 0:00:11]} 20. Qxc5 {[%emt 0:00:21]} Qxc5 {[%emt 0:00:22]} 21. Rxc5 {[%emt 0:00:06]} g6 {[%emt 0:03:57]} 22. a4 {[%emt 0:01:43]} Ra2 {[%emt 0:02:54]} 23. Bc6 {[%emt 0:07:01]} Rc8 {[%emt 0:04:03]} 24. a5 {[%emt 0:01:59]} Ra1 {[%emt 0:12:25]} 25. a6 {[%emt 0:18:25]} Bxb1 {[%emt 0:00:23]} 26. a7 {[%emt 0:03:34]} Rxa7 {[%emt 0:00:08]} 27. Rxb1 {[%emt 0:00:04]} Rac7 {[%emt 0:00:08]} 28. Rb6 {[%emt 0:00:37]} d3 {[%emt 0:00:25]} 29. Kf1 {[%emt 0:00:08]} d2 {[%emt 0:00:11]} 30. Ke2 {[%emt 0:00:27]} Rd8 {[%emt 0:00:09]} 31. Kd1 {[%emt 0:00:41]} Re7 {[%emt 0:00:19]} 32. Bf3 {[%emt 0:01:44]} Re1+ {[%emt 0:00:07]} 33. Kc2 {[%emt 0:00:10]} Rc1+ {[%emt 0:00:05]} 0-1

[Event "XIX Najdorf Memorial 2019"]
[Site "Warsaw"]
[Date "2019.07.12"]
[Round "7.14"]
[White "Czopor, Maciej"]
[Black "Terletsky, Oleg"]
[Result "1-0"]
[ECO "C92"]
[WhiteElo "2250"]
[BlackElo "2408"]
[Annotator "NA"]
[PlyCount "83"]
[EventDate "2019.07.06"]
[EventType "swiss"]
[EventCountry "POL"]
[SourceTitle "playchess.com"]
[Source "ChessBase"]
[SourceQuality "1"]
[TimeControl "40/5400+30:1800+30"]

1. e4 {[%emt 0:00:00]} e5 {[%emt 0:00:00]} 2. Nf3 {[%emt 0:00:00]} Nc6 {[%emt 0:00:00]} 3. Bb5 {[%emt 0:00:00]} a6 {[%emt 0:00:00]} 4. Ba4 {[%emt 0:00:00]} Nf6 {[%emt 0:00:00]} 5. O-O {[%emt 0:00:00]} Be7 {[%emt 0:00:00]} 6. Re1 {[%emt 0:00:04]} b5 {[%emt 0:00:00]} 7. Bb3 {[%emt 0:00:06]} d6 {[%emt 0:00:00]} 8. c3 {[%emt 0:00:13]} O-O {[%emt 0:00:06]} 9. h3 {[%emt 0:00:07]} Bb7 {[%emt 0:00:03]} 10. d4 {[%emt 0:00:17]} Re8 {[%emt 0:00:08]} 11. Nbd2 {[%emt 0:00:19]} Bf8 {[%emt 0:00:08]} 12. a3 {[%emt 0:00:47]} h6 {[%emt 0:00:08]} 13. d5 {[%emt 0:00:42]} Ne7 {[%emt 0:01:28]} 14. Nh2 {[%emt 0:10:06]} c6 {[%emt 0:04:43]} 15. dxc6 Bxc6 16. Qf3 {[%emt 0:15:07]} Ng6 {[%emt 0:13:50]} 17. Ng4 {[%emt 0:00:52]} Ra7 {[%emt 0:00:11]} 18. Nxf6+ {[%emt 0:12:14]} Qxf6 {[%emt 0:00:22]} 19. Qxf6 {[%emt 0:00:16]} gxf6 {[%emt 0:00:01]} 20. a4 {[%emt 0:08:15]} b4 {[%emt 0:03:02]} 21. cxb4 {[%emt 0:05:27]} Rb8 {[%emt 0:00:45]} 22. Bc4 {[%emt 0:05:23]} Rxb4 {[%emt 0:23:14]} 23. b3 {[%emt 0:02:00]} a5 {[%emt 0:03:50]} 24. Nf1 {[%emt 0:10:12]} Nf4 {[%emt 0:06:12]} 25. Bd2 {[%emt 0:06:14]} Rb8 {[%emt 0:00:34]} 26. Bxf4 {[%emt 0:04:50]} exf4 {[%emt 0:00:02]} 27. Nd2 {[%emt 0:01:28]} f5 {[%emt 0:00:46]} 28. Bd5 {[%emt 0:01:32]} Bd7 {[%emt 0:05:05]} 29. Rac1 {[%emt 0:02:14]} Bg7 {[%emt 0:01:18]} 30. exf5 {[%emt 0:03:28]} Bxf5 {[%emt 0:01:13]} 31. Rc4 {[%emt 0:09:02]} Be5 {[%emt 0:01:41]} 32. Nf3 {[%emt 0:00:38]} Rxb3 {[%emt 0:03:43]} 33. Nxe5 {[%emt 0:00:25]} dxe5 {[%emt 0:00:02]} 34. Rxe5 {[%emt 0:00:20]} Rb1+ {[%emt 0:00:11]} 35. Kh2 {[%emt 0:00:08]} Bg6 {[%emt 0:00:21]} 36. Rxf4 {[%emt 0:01:19]} Rc7 {[%emt 0:01:08]} 37. Bf3 {[%emt 0:02:02]} Ra7 {[%emt 0:01:38]} 38. Kg3 {[%emt 0:01:14]} Rb3 {[%emt 0:03:53]} 39. Rc4 {[%emt 0:01:10]} Bd3 {[%emt 0:00:40]} 40. Rcc5 {[%emt 0:00:00]} Rb4 {[%emt 0:00:00]} 41. Red5 {[%emt 0:14:47]} Rb3 {[%emt 0:09:21]} 42. Kh2 {[%emt 0:03:09]} 1-0

[Event "XIX Najdorf Memorial 2019"]
[Site "Warsaw"]
[Date "2019.07.12"]
[Round "7.15"]
[White "Krishna Teja, N."]
[Black "Kubicka, Anna"]
[Result "1/2-1/2"]
[ECO "A56"]
[WhiteElo "2368"]
[BlackElo "2202"]
[Annotator "NA"]
[PlyCount "62"]
[EventDate "2019.07.06"]
[EventType "swiss"]
[EventCountry "POL"]
[SourceTitle "playchess.com"]
[Source "ChessBase"]
[SourceQuality "1"]
[TimeControl "40/5400+30:1800+30"]

1. d4 Nf6 2. c4 c5 3. Nf3 cxd4 4. Nxd4 e5 5. Nb5 d6 6. N5c3 Be6 7. e4 Nc6 8. Bd3 Be7 9. O-O O-O 10. h3 h6 11. Be3 Nb4 12. Be2 Rc8 13. a3 Nc6 14. Nd2 Nd7 15. b4 Bg5 16. Bxg5 Qxg5 17. Nf3 Qg6 18. Qxd6 Rfd8 19. Qd3 Nd4 20. Nd5 Bxd5 21. cxd5 Rc3 22. Qd1 Qxe4 23. Nxd4 exd4 24. Bf3 Qf4 25. Re1 Ne5 26. Be4 d3 27. g3 Qf6 28. Ra2 Rdc8 29. Rd2 Rxa3 30. f4 Ng6 31. Rxd3 Rcc3 1/2-1/2